bitfinex-derivatives/quotes_SOLF0:USTF0_20250409
["timestamp","ask_amount","ask_price","bid_price","bid_amount"]
[1744165820164,0.0636184,104.17,104.16,9.609]
[1744165821169,2.3189,104.21,104.18,9.6068]
[1744165821369,2.3189,104.21,104.15,31.86762229]
[1744165821565,2.3189,104.21,104.16,9.6086]
[1744165821871,9.6058,104.2,104.16,9.6086]
[1744165822164,0.06125252,104.19,104.17,0.06519424]
[1744165822469,0.06125252,104.19,104.17,9.67299424]
[1744165822668,0.06125252,104.19,104.17,0.06519424]
[1744165823065,0.06125252,104.19,104.18,63.1472]
[1744165823470,58.1637,104.26,104.18,53.54]
[1744165823471,9.6028,104.23,104.18,53.54]
[1744165823771,60.3755,104.26,104.18,53.54]
[1744165824271,9.6021,104.24,104.21,9.6038]
[1744165824573,53.54,104.31,104.22,53.54]
[1744165824865,4.6237,104.3,104.22,53.54]
[1744165825071,9.5975,104.29,104.23,31.79932929]
[1744165825277,4.6237,104.3,104.23,31.79932929]
[1744165825570,14.2202,104.3,104.27,9.5987]
[1744165825881,14.28613401,104.3,104.27,9.66829566]
[1744165826067,14.28613401,104.3,104.27,0.06959566]
[1744165826273,4.68963401,104.3,104.27,0.06959566]
[1744165826476,4.68963401,104.3,104.22,53.54]
[1744165826669,4.68963401,104.3,104.19,0.1945]
[1744165826670,9.6021,104.24,104.19,85.51382929]
[1744165826975,4.6237,104.3,104.19,85.51382929]
[1744165827173,4.6237,104.3,104.21,31.79932929]
[1744165827671,9.5985,104.28,104.21,31.79932929]
[1744165827868,0.06172903,104.27,104.24,0.06995095]
[1744165828067,0.06172903,104.27,104.24,53.58995095]
[1744165828265,0.06172903,104.27,104.26,9.5998]
[1744165829076,53.52,104.34,104.25,31.79932929]
[1744165829280,2.3708,104.34,104.27,31.79932929]
[1744165829471,2.3708,104.34,104.29,31.79932929]
[1744165829670,2.3708,104.34,104.31,9.5946]
[1744165829867,2.3708,104.34,104.29,31.79932929]
[1744165830277,0.06424083,104.33,104.3,0.0736883]
[1744165831879,2.40704083,104.33,104.3,0.0736883]
[1744165832382,9.5952,104.31,104.3,0.0736883]
[1744165832979,2.40704083,104.33,104.3,0.0736883]
[1744165833383,9.5948,104.32,104.3,0.0736883]
[1744165833978,9.5952,104.31,104.3,0.0736883]
[1744165834779,2.40704083,104.33,104.3,0.0736883]
[1744165835081,9.5948,104.32,104.3,0.0736883]
[1744165835283,2.40704083,104.33,104.3,0.0736883]
[1744165835780,9.5943,104.32,104.3,0.0736883]
[1744165836280,12.00074083,104.33,104.3,0.0736883]
[1744165836783,0.06424083,104.33,104.3,0.0736883]
[1744165836982,0.06424083,104.33,104.31,31.79932929]
[1744165837184,53.5,104.41,104.31,31.79932929]
[1744165837384,2.1953,104.39,104.3,32.00291759]
[1744165837587,2.1953,104.39,104.3,31.92922929]
[1744165837781,33.99462929,104.39,104.29,53.5]
[1744165837981,1.76289343,104.38,104.29,53.5]
[1744165838295,0.06386786,104.35,104.32,0.06444141]
[1744165838681,2.1953,104.39,104.33,53.48]
[1744165838878,11.7837,104.39,104.36,9.5904]
[1744165839080,2.1953,104.39,104.36,9.5904]
[1744165839282,53.48,104.43,104.38,9.5885]
[1744165839586,4.5758,104.44,104.37,53.48]
[1744165839779,4.5758,104.44,104.39,0.06389174]
[1744165840086,0.0653339,104.42,104.39,0.06389174]
[1744165840474,0.0653339,104.42,104.39,9.65129174]
[1744165840784,0.0653339,104.42,104.39,0.06389174]
[1744165840986,9.6509339,104.42,104.39,0.06389174]
[1744165841186,0.0653339,104.42,104.39,0.06389174]
[1744165842991,9.5867,104.41,104.39,0.06389174]
[1744165843287,0.0653339,104.42,104.39,0.06389174]
[1744165844085,0.0653339,104.42,104.41,9.586]
[1744165844583,2.3459,104.46,104.4,85.25932929]
[1744165844782,2.3459,104.46,104.42,31.79932929]
[1744165845082,11.9279,104.46,104.42,9.5848]
[1744165845277,11.9279,104.46,104.4,85.25932929]
[1744165845482,2.3459,104.46,104.4,85.25932929]
[1744165845784,0.07160302,104.44,104.43,9.5836]
[1744165846085,0.07160302,104.44,104.42,0.06338251]
[1744165846681,9.5842,104.43,104.42,0.06338251]
[1744165847381,0.07160302,104.44,104.37,53.26]
[1744165847684,2.2821,104.43,104.37,53.26]
[1744165848189,2.2821,104.43,104.36,53.26]
[1744165848383,2.2302,104.42,104.36,53.26]
[1744165848588,0.07206369,104.41,104.39,0.07289147]
[1744165849990,0.07206369,104.41,104.39,9.66029147]
[1744165850185,0.07206369,104.41,104.39,0.07289147]
[1744165851790,0.07206369,104.41,104.39,9.66009147]
[1744165852391,0.07206369,104.41,104.39,0.07289147]
[1744165853489,0.07206369,104.41,104.39,9.66019147]
[1744165854789,0.07206369,104.41,104.34,31.79932929]
[1744165855095,2.2821,104.43,104.34,31.79932929]
[1744165855302,2.2821,104.43,104.36,9.5902]
[1744165855897,9.5865,104.41,104.34,31.79932929]
[1744165856090,9.64686451,104.41,104.38,0.06703734]
[1744165856394,9.65381264,104.41,104.38,0.06703734]
[1744165859701,9.5871,104.4,104.38,0.06703734]
[1744165859894,0.06731264,104.41,104.38,0.06703734]
[1744165860398,9.5878,104.39,104.38,0.06703734]
[1744165860702,2.48751264,104.41,104.33,559.9]
[1744165860891,2.4202,104.41,104.33,559.9]
[1744165861091,2.4202,104.41,104.33,569.4927]
[1744165861293,2.4202,104.41,104.33,53.26]
[1744165861796,0.06366138,104.38,104.36,0.06798866]
[1744165861996,9.65296138,104.38,104.36,0.06798866]
[1744165862493,0.06366138,104.38,104.36,0.06798866]
[1744165863794,0.06366138,104.38,104.37,9.5897]
[1744165864002,0.06366138,104.38,104.36,0.06798866]
[1744165864303,9.5897,104.37,104.36,0.06798866]
[1744165864497,0.06366138,104.38,104.31,156.88920204]
[1744165864704,2.3403,104.37,104.31,156.88920204]
[1744165865103,9.5923,104.35,104.31,166.48380204]
[1744165865404,2.3403,104.37,104.31,166.48380204]
[1744165865603,2.3403,104.37,104.31,156.88920204]
[1744165865898,0.06691553,104.35,104.31,156.88920204]
[1744165866099,0.06691553,104.35,104.31,145.96950204]
[1744165866307,0.06691553,104.35,104.31,135.04890204]
[1744165866615,9.5967,104.3,104.27,39.31019655]
[1744165866802,53.26,104.32,104.27,39.31019655]
[1744165867000,1.76438067,104.31,104.27,39.31019655]
[1744165867306,1.8281906,104.31,104.28,0.07068816]
[1744165867614,9.597,104.29,104.28,8.816e-05]
[1744165868908,9.5964,104.3,104.28,8.816e-05]
[1744165869103,0.06380993,104.31,104.28,8.816e-05]
[1744165869809,53.28,104.37,104.29,31.79932929]
[1744165870007,53.28,104.37,104.3,2.3854]
[1744165870206,53.28,104.37,104.33,9.5933]
[1744165870407,53.28,104.37,104.31,2.3406]
[1744165870911,9.5911,104.36,104.32,9.5938]
[1744165871116,0.07000645,104.35,104.33,0.07279451]
[1744165872513,9.5924,104.34,104.33,0.07279451]
[1744165872717,0.07000645,104.35,104.33,0.07279451]
[1744165873615,9.66210645,104.35,104.33,0.07279451]
[1744165873807,0.07000645,104.35,104.33,0.07279451]
[1744165874515,0.07000645,104.35,104.33,9.66569451]
[1744165874713,0.07000645,104.35,104.33,0.07279451]
[1744165875519,9.5924,104.34,104.33,0.07279451]
[1744165876020,0.07000645,104.35,104.33,0.07279451]
[1744165877320,9.5924,104.34,104.33,0.07279451]
[1744165878616,9.5924,104.34,104.33,9.451e-05]
[1744165880919,41.37932929,104.34,104.26,2.2291]
[1744165881131,31.79932929,104.32,104.24,4.6317]
[1744165881420,53.14,104.31,104.24,4.6317]
[1744165882019,0.07067726,104.29,104.26,0.03845541]
[1744165882517,0.07067726,104.29,104.26,9.63755541]
[1744165883017,0.07067726,104.29,104.27,9.5989]
[1744165883222,0.07067726,104.29,104.26,0.03845541]
[1744165883624,0.07067726,104.29,104.27,9.5989]
[1744165884018,53.14,104.34,104.29,9.5966]
[1744165884326,9.5938,104.33,104.29,9.5966]
[1744165884526,53.14,104.37,104.29,53.14]
[1744165884824,9.5916,104.35,104.3,2.1993]
[1744165885126,0.06534628,104.34,104.31,9.66157548]
[1744165885423,0.06534628,104.34,104.31,0.06707548]
[1744165885621,145.6415603,104.4,104.36,9.5904]
[1744165885828,92.86042553,104.43,104.36,9.5904]
[1744165886126,9.5866,104.41,104.34,84.93932929]
[1744165886726,0.06988124,104.39,104.36,0.07162654]
[1744165887027,9.5866,104.41,104.37,9.5892]
[1744165887325,39.72042553,104.43,104.38,2.2555]
[1744165887525,39.72042553,104.43,104.39,9.5874]
[1744165888223,0.06448822,104.42,104.4,0.07093038]
[1744165889127,39.72042553,104.43,104.4,0.07093038]
[1744165889431,25.15962553,104.43,104.41,9.5852]
[1744165889726,98.64093477,104.44,104.42,53.12]
[1744165889918,51.6248165,104.45,104.44,9.5833]
[1744165890420,51.6248165,104.45,104.44,19.1633]
[1744165890622,0.07051151,104.46,104.45,9.5823]
[1744165890827,0.07051151,104.46,104.45,61.1373372]
[1744165891328,0.07051151,104.46,104.43,51.61831652]
[1744165891529,0.07051151,104.46,104.43,0.06327932]
[1744165892129,9.65191151,104.46,104.43,0.06327932]
[1744165892328,0.07051151,104.46,104.43,0.06327932]
[1744165895330,9.5829,104.45,104.43,0.06327932]
[1744165895630,0.07051151,104.46,104.43,0.06327932]
[1744165896032,2.38051151,104.46,104.43,0.06327932]
[1744165896230,2.2036,104.45,104.43,0.06327932]
[1744165896831,11.7866,104.45,104.43,0.06327932]
[1744165897632,9.5833,104.44,104.43,0.06327932]
[1744165897832,0.07051151,104.46,104.43,0.06327932]
[1744165898631,9.5833,104.44,104.39,53.1]
[1744165898832,2.1901,104.47,104.39,53.1]
[1744165899432,9.5848,104.43,104.39,53.1]
[1744165899631,9.5848,104.43,104.39,62.6878]
[1744165899925,0.06554793,104.42,104.4,0.06744672]
[1744165900130,0.06554793,104.42,104.41,9.586]
[1744165901536,0.00244793,104.42,104.41,9.586]
[1744165901835,0.00244793,104.42,104.4,61.20908392]
[1744165902227,0.00244793,104.42,104.4,0.06744672]
[1744165902927,0.00244793,104.42,104.41,9.586]
[1744165904832,0.00244793,104.42,104.4,9.65354672]
[1744165905033,0.00244793,104.42,104.4,0.06744672]
[1744165905634,0.00244793,104.42,104.41,9.586]
[1744165906830,0.00244793,104.42,104.4,0.06744672]
[1744165907232,0.00244793,104.42,104.36,559.08]
[1744165907434,4.54954793,104.42,104.36,62.5103]
[1744165907632,9.5865,104.41,104.36,52.92]
[1744165907832,4.5471,104.42,104.36,52.92]
[1744165908033,4.5471,104.42,104.37,9.5891]
[1744165908336,9.5865,104.41,104.37,9.5891]
[1744165908530,9.66001207,104.41,104.38,0.06680766]
[1744165909033,0.07351207,104.41,104.38,9.65540766]
[1744165909752,0.07351207,104.41,104.38,0.06680766]
[1744165911340,0.07351207,104.41,104.4,9.5869]
[1744165913046,0.07351207,104.41,104.38,0.06680766]
[1744165913650,0.07351207,104.41,104.39,9.5874]
[1744165913947,0.07351207,104.41,104.38,0.06680766]
[1744165914151,0.07351207,104.41,104.4,9.5869]
[1744165915139,0.07351207,104.41,104.39,52.92]
[1744165915742,0.00561207,104.41,104.39,52.92]
[1744165916239,0.00561207,104.41,104.4,9.5869]
[1744165916646,2.2535,104.48,104.4,9.58]
[1744165916847,2.2986,104.5,104.43,51.57673855]
[1744165917042,2.2986,104.5,104.44,52.92]
[1744165917235,9.5801,104.48,104.44,62.5028]
[1744165917439,2.2986,104.5,104.44,52.92]
[1744165917643,9.5795,104.49,104.45,9.5818]
[1744165917843,0.06096,104.48,104.46,0.06168825]
[1744165918240,0.06096,104.48,104.46,9.64258825]
[1744165919047,0.06096,104.48,104.47,9.5805]
[1744165920645,6e-05,104.48,104.47,61.15723855]
[1744165921854,6e-05,104.48,104.47,9.5805]
[1744165923154,6e-05,104.48,104.47,61.15723855]
[1744165923651,2.367,104.54,104.47,70.73723855]
[1744165923956,4.5336,104.56,104.51,51.57673855]
[1744165924153,52.9,104.59,104.51,51.57673855]
[1744165924352,52.9,104.59,104.53,51.57673855]
[1744165924554,7.0082,104.6,104.53,104.47673855]
[1744165924751,9.5705,104.58,104.54,9.5736]
[1744165924951,52.95145759,104.58,104.55,0.06993652]
[1744165925152,0.07145759,104.58,104.55,0.06993652]
[1744165925357,9.64071978,104.58,104.55,0.06993652]
[1744165925553,0.06941978,104.58,104.5,52.88]
[1744165925748,1.75964821,104.59,104.49,51.57673855]
[1744165925958,53.33657566,104.58,104.49,52.88]
[1744165926153,54.63983711,104.57,104.49,52.88]
[1744165926353,52.88,104.57,104.49,52.88]
[1744165926555,9.5765,104.52,104.49,52.88]
[1744165926956,9.5765,104.52,104.48,156.86866154]
[1744165927156,9.5773,104.51,104.49,0.07006813]
[1744165927558,9.5773,104.51,104.49,0.06125333]
[1744165929561,0.06380753,104.52,104.49,0.06125333]
[1744165930756,0.06380753,104.52,104.46,52.88]
[1744165931061,2.32920753,104.52,104.46,52.88]
[1744165931655,2.32920753,104.52,104.44,9.5828]
[1744165931962,1.76118632,104.51,104.48,0.0675829]
[1744165932154,0.06578638,104.49,104.46,9.5812]
[1744165932459,0.06578638,104.49,104.44,84.56081804]
[1744165932764,2.2654,104.52,104.48,9.5796]
[1744165932765,11.8416,104.52,104.48,9.5796]
[1744165932967,2.2654,104.52,104.44,84.56081804]
[1744165933262,0.06684527,104.49,104.47,0.06286392]
[1744165935364,9.64564527,104.49,104.47,0.06286392]
[1744165936261,0.06684527,104.49,104.47,0.06286392]
[1744165936864,9.64594527,104.49,104.47,0.06286392]
[1744165937467,9.5796,104.48,104.47,0.06286392]
[1744165937671,0.06684527,104.49,104.47,0.06286392]
[1744165937869,9.5819,104.46,104.41,95.69419101]
[1744165938465,2.3246,104.48,104.41,95.69419101]
[1744165938870,9.581,104.47,104.43,9.5837]
[1744165939068,0.07115837,104.46,104.43,0.0720621]
[1744165939371,0.07115837,104.46,104.44,9.5828]
[1744165939565,0.07115837,104.46,104.43,0.0720621]
[1744165940271,0.07115837,104.46,104.44,31.68081804]
[1744165940568,4.7484,104.54,104.48,31.68081804]
[1744165940764,4.7484,104.54,104.51,9.5764]
[1744165940970,4.7484,104.54,104.49,52.72]
[1744165941567,0.06361458,104.53,104.5,9.65046909]
[1744165941769,0.06361458,104.53,104.5,0.07316909]
[1744165941970,0.06361458,104.53,104.52,9.5759]
[1744165942469,9.5759,104.52,104.5,0.07316909]
[1744165942670,0.06361458,104.53,104.5,0.07316909]
[1744165942868,0.06361458,104.53,104.46,84.40081804]
[1744165943067,9.5778,104.5,104.46,62.3008]
[1744165943369,52.72,104.55,104.46,84.40081804]
[1744165943572,9.5756,104.53,104.49,9.5782]
[1744165943765,52.72,104.55,104.49,9.5782]
[1744165943963,52.72,104.55,104.46,84.40081804]
[1744165944164,0.0695658,104.53,104.51,0.062761]
[1744165944359,0.0695658,104.53,104.47,9.58]
[1744165944565,52.72,104.55,104.47,9.58]
[1744165944771,9.5763,104.52,104.48,9.5793]
[1744165944981,52.72,104.55,104.46,84.40081804]
[1744165945570,0.0644488,104.52,104.51,9.5764]
[1744165946070,4.5348,104.58,104.5,84.4501041]
[1744165946265,2.2339,104.58,104.52,31.68081804]
[1744165946460,2.2339,104.58,104.56,9.5716]
[1744165946661,2.2339,104.58,104.52,31.68081804]
[1744165946971,11.8047,104.58,104.54,9.5735]
[1744165947171,0.06141969,104.56,104.54,0.0653329]
[1744165947574,62.288,104.61,104.54,84.46615094]
[1744165947767,2.2898,104.62,104.56,31.68081804]
[1744165947967,2.2898,104.62,104.59,9.5694]
[1744165948274,2.2484,104.63,104.56,31.68081804]
[1744165948575,9.5672,104.62,104.56,31.68081804]
[1744165948775,0.07162548,104.61,104.58,0.07253977]
[1744165949276,0.07162548,104.61,104.58,52.77253977]
[1744165949581,0.07162548,104.61,104.58,84.45335781]
[1744165950081,9.5686,104.6,104.58,0.07253977]
[1744165950375,0.07162548,104.61,104.58,0.07253977]
[1744165951075,0.07162548,104.61,104.58,31.75335781]
[1744165951277,0.07162548,104.61,104.6,9.5686]
[1744165951467,4.6273,104.65,104.6,84.38081804]
[1744165951663,2.4127,104.66,104.6,84.38081804]
[1744165952273,2.4127,104.66,104.6,52.7]
[1744165952472,2.4127,104.66,104.58,31.68081804]
[1744165952674,2.4127,104.66,104.62,0.07301738]
[1744165952675,0.06856202,104.64,104.62,0.07301738]
[1744165953075,9.5658,104.63,104.62,0.07301738]
[1744165953575,0.06856202,104.64,104.57,62.2512]
[1744165953777,86.11953919,104.65,104.54,84.36081804]
[1744165953978,1.75872115,104.64,104.54,84.36081804]
[1744165954180,9.57,104.59,104.54,84.36081804]
[1744165954777,9.57,104.59,104.55,0.06441974]
[1744165954778,0.06201171,104.58,104.55,0.06441974]
[1744165955372,0.06201171,104.58,104.56,9.5722]
[1744165955669,0.06201171,104.58,104.55,0.06441974]
[1744165955868,0.06201171,104.58,104.56,31.68081804]
[1744165956074,0.06201171,104.58,104.55,0.06441974]
[1744165956393,2.3075,104.63,104.56,31.68081804]
[1744165956677,2.3075,104.63,104.59,31.68081804]
[1744165956878,2.3075,104.63,104.58,52.68]
[1744165957083,54.9784,104.68,104.58,52.68]
[1744165957266,4.18100974,104.67,104.59,51.3431968]
[1744165957466,9.5644,104.65,104.61,9.5672]
[1744165957670,0.06173948,104.64,104.62,0.06896003]
[1744165958186,51.3431968,104.74,104.63,51.3431968]
[1744165958381,2.3063,104.71,104.65,51.3431968]
[1744165958573,2.4228,104.73,104.67,51.3431968]
[1744165958883,9.5581,104.72,104.68,9.5608]
[1744165959074,2.4228,104.73,104.66,52.68]
[1744165959384,0.06252336,104.71,104.69,0.07270446]
[1744165959584,52.74252336,104.71,104.62,52.68]
[1744165959787,9.5645,104.65,104.62,52.68]
[1744165960577,9.565,104.64,104.62,52.68]
[1744165960783,0.06486187,104.65,104.62,0.06106145]
[1744165961689,9.5658,104.63,104.62,0.06106145]
[1744165961883,4.6951,104.64,104.62,0.06106145]
[1744165962189,14.2606,104.64,104.62,0.06106145]
[1744165962885,4.6951,104.64,104.62,0.06106145]
[1744165963085,0.06486187,104.65,104.62,0.06106145]
[1744165963392,9.62886187,104.65,104.62,9.62716145]
[1744165963689,0.06486187,104.65,104.62,0.06106145]
[1744165963888,9.565,104.64,104.62,0.06106145]
[1744165964088,0.06486187,104.65,104.62,0.06106145]
[1744165965981,9.5691,104.6,104.56,9.5717]
[1744165966186,2.275,104.64,104.54,609.2031968]
[1744165966387,53.6181968,104.64,104.54,557.86]
[1744165966586,51.3431968,104.62,104.52,51.3431968]
[1744165966790,52.5,104.61,104.51,52.5]
[1744165967187,9.5727,104.56,104.55,0.06494374]
[1744165967388,0.07215201,104.57,104.55,0.06494374]
[1744165968803,0.07215201,104.57,104.55,9.63754374]
[1744165969293,0.07215201,104.57,104.55,0.06494374]
[1744165970097,0.07215201,104.57,104.55,9.63784374]
[1744165970902,9.64345201,104.57,104.55,0.06494374]
[1744165971106,0.07215201,104.57,104.55,0.06494374]
[1744165972207,9.64375201,104.57,104.55,0.06494374]
[1744165972498,0.07215201,104.57,104.55,0.06494374]
[1744165972906,9.64395201,104.57,104.55,0.06494374]
[1744165973104,0.07215201,104.57,104.55,0.06494374]
[1744165974204,0.07215201,104.57,104.55,9.63764374]
[1744165974704,0.07215201,104.57,104.55,0.06494374]
[1744165974998,0.07215201,104.57,104.56,9.5723]
[1744165976005,0.07215201,104.57,104.55,0.06494374]
[1744165976708,9.64365201,104.57,104.55,0.06494374]
[1744165976903,0.07215201,104.57,104.55,0.06494374]
[1744165977207,0.07215201,104.57,104.55,9.63764374]
[1744165977502,0.07215201,104.57,104.55,0.06494374]
[1744165978612,0.07215201,104.57,104.55,9.63734374]
[1744165978906,0.07215201,104.57,104.55,52.58494374]
[1744165979605,0.07215201,104.57,104.55,0.06494374]
[1744165979807,52.59215201,104.57,104.48,52.52]
[1744165980005,2.2515,104.56,104.48,52.52]
[1744165980407,9.5764,104.52,104.48,273.2820314]
[1744165980609,2.2515,104.56,104.49,51.3431968]
[1744165980803,2.2515,104.56,104.51,9.5767]
[1744165981005,0.0696225,104.54,104.51,0.06170516]
[1744165981323,9.5763,104.52,104.48,220.7621314]
[1744165981504,54.8662,104.53,104.48,211.1826314]
[1744165982307,54.8662,104.53,104.45,103.8631968]
[1744165982508,0.06207292,104.52,104.49,0.03709902]
[1744165982708,0.06207292,104.52,104.49,51.38029582]
[1744165982901,0.06207292,104.52,104.49,103.90029582]
[1744165983813,0.06207292,104.52,104.49,0.03709902]
[1744165984207,0.06207292,104.52,104.5,9.5772]
[1744165984409,0.06207292,104.52,104.49,0.03709902]
[1744165984914,0.06207292,104.52,104.46,52.52]
[1744165985110,0.06207292,104.52,104.45,51.3431968]
[1744165985316,9.5798,104.48,104.45,60.9250968]
[1744165985507,54.7323,104.53,104.45,51.3431968]
[1744165985702,9.5801,104.48,104.44,9.583]
[1744165985916,54.7323,104.53,104.43,52.54]
[1744165986216,0.06352003,104.47,104.43,52.54]
[1744165986408,9.5818,104.46,104.43,52.54]
[1744165987009,0.06352003,104.47,104.41,9.5857]
[1744165987213,2.3012,104.48,104.41,9.5857]
[1744165987413,2.2642,104.47,104.4,52.54]
[1744165987614,9.5837,104.44,104.4,52.54]
[1744165987815,0.06497158,104.45,104.4,52.54]
[1744165988312,0.06497158,104.45,104.4,103.8831968]
[1744165988506,0.06497158,104.45,104.4,52.54]
[1744165988915,9.5849,104.43,104.38,556.7231968]
[1744165989213,52.54,104.45,104.38,556.7231968]
[1744165989514,0.06944184,104.42,104.37,52.54]
[1744165989916,0.06944184,104.42,104.38,51.3431968]
[1744165990109,0.06944184,104.42,104.41,9.586]
[1744165991010,11.8449,104.47,104.43,9.5835]
[1744165991310,2.2642,104.47,104.42,51.3431968]
[1744165991514,2.3012,104.48,104.45,9.5818]
[1744165992209,2.37367993,104.48,104.45,9.64438278]
[1744165992615,11.95377993,104.48,104.45,9.64438278]
[1744165993017,2.37367993,104.48,104.45,9.64438278]
[1744165994315,2.37367993,104.48,104.45,0.06258278]
[1744165995417,2.37367993,104.48,104.41,52.56]
[1744165995721,52.56,104.47,104.4,51.3431968]
[1744165995920,2.2373,104.46,104.38,104.4566968]
[1744165996118,9.5836,104.44,104.4,9.5863]
[1744165996521,2.2902,104.45,104.4,9.5863]
[1744165996716,0.07066177,104.43,104.41,9.5859]
[1744165996918,0.07066177,104.43,104.4,51.3431968]
[1744165997721,0.07066177,104.43,104.41,9.5855]
[1744165997922,0.07066177,104.43,104.4,51.3431968]
[1744165998821,0.07066177,104.43,104.42,9.5851]
[1744166000229,2.3012,104.48,104.45,9.5819]
[1744166000427,2.3012,104.48,104.42,103.7631968]
[1744166000624,52.42,104.53,104.46,51.3431968]
[1744166000825,59.3722,104.53,104.46,51.3431968]
[1744166001127,59.3722,104.53,104.46,103.7631968]
[1744166001426,0.06580363,104.51,104.48,9.64693936]
[1744166001729,0.06580363,104.51,104.48,0.06823936]
[1744166003028,9.5787,104.49,104.48,0.06823936]
[1744166004723,9.64290363,104.51,104.48,0.06823936]
[1744166004935,0.06580363,104.51,104.48,0.06823936]
[1744166005428,0.06580363,104.51,104.48,9.64703936]
[1744166005928,0.06580363,104.51,104.48,0.06823936]
[1744166007530,9.5783,104.5,104.48,0.06823936]
[1744166007828,0.06580363,104.51,104.48,0.06823936]
[1744166008025,9.64310363,104.51,104.48,0.06823936]
[1744166008231,0.06580363,104.51,104.48,0.06823936]
[1744166008424,0.06580363,104.51,104.48,51.41143616]
[1744166009428,0.06580363,104.51,104.48,0.06823936]
[1744166009624,9.5783,104.5,104.48,0.06823936]
[1744166009828,0.06580363,104.51,104.48,0.06823936]
[1744166010327,0.06580363,104.51,104.48,51.41143616]
[1744166011224,0.06580363,104.51,104.5,9.5778]
[1744166011419,0.06580363,104.51,104.48,51.41143616]
[1744166011823,0.06580363,104.51,104.48,0.06823936]
[1744166012833,0.06580363,104.51,104.49,9.5786]
[1744166013037,0.06580363,104.51,104.48,0.06823936]
[1744166014430,9.64310363,104.51,104.48,0.06823936]
[1744166014631,0.06580363,104.51,104.48,0.06823936]
[1744166016429,0.06580363,104.51,104.49,9.5782]
[1744166016629,0.06580363,104.51,104.48,0.06823936]
[1744166016942,0.06580363,104.51,104.5,9.5778]
[1744166018936,54.6502,104.56,104.51,9.576]
[1744166019142,9.574,104.55,104.51,9.576]
[1744166019432,9.574,104.55,104.52,9.5758]
[1744166019636,54.6502,104.56,104.5,31.67344367]
[1744166019836,9.5727,104.56,104.5,31.67344367]
[1744166020139,0.06237628,104.54,104.52,9.63785181]
[1744166020333,0.06237628,104.54,104.52,0.06255181]
[1744166020633,0.06237628,104.54,104.52,9.63795181]
[1744166021737,0.06237628,104.54,104.53,9.575]
[1744166022039,0.06237628,104.54,104.52,0.06255181]
[1744166022439,0.06237628,104.54,104.53,9.575]
[1744166024140,52.4,104.59,104.52,31.73599548]
[1744166024334,59.1492,104.62,104.56,9.5719]
[1744166024534,59.1492,104.62,104.54,31.67344367]
[1744166024839,4.4595,104.62,104.56,31.67344367]
[1744166025133,2.248,104.62,104.58,31.67344367]
[1744166025341,2.2897,104.66,104.61,31.67344367]
[1744166025342,2.2115,104.66,104.61,31.67344367]
[1744166025534,4.5377,104.71,104.64,31.67344367]
[1744166025733,6.7492,104.71,104.64,31.67344367]
[1744166025936,0.06441571,104.69,104.67,9.5617]
[1744166026335,0.06441571,104.69,104.66,0.07076111]
[1744166026735,9.5647,104.65,104.61,84.07344367]
[1744166027038,52.24,104.68,104.61,84.07344367]
[1744166027337,9.5627,104.67,104.62,51.31563038]
[1744166027536,52.24,104.68,104.62,51.31563038]
[1744166027941,0.06213879,104.66,104.64,0.06872133]
[1744166028940,9.564,104.65,104.64,0.06872133]
[1744166029841,9.56,104.65,104.58,51.31563038]
[1744166030141,54.5896,104.64,104.56,51.31563038]
[1744166030330,52.2,104.63,104.55,52.22]
[1744166031044,0.07211742,104.6,104.58,0.06123982]
[1744166032342,9.5695,104.59,104.58,0.06123982]
[1744166033845,0.07211742,104.6,104.58,0.06123982]
[1744166034342,9.5695,104.59,104.58,0.06123982]
[1744166034943,9.64111742,104.6,104.58,0.06123982]
[1744166035444,0.07211742,104.6,104.58,0.06123982]
[1744166035847,0.07211742,104.6,104.58,9.63153982]
[1744166036046,0.07211742,104.6,104.58,0.06123982]
[1744166036547,9.64131742,104.6,104.58,0.06123982]
[1744166036948,0.07211742,104.6,104.58,0.06123982]
[1744166037153,9.5695,104.59,104.58,0.06123982]
[1744166038251,0.07211742,104.6,104.55,52.22]
[1744166038552,0.07211742,104.6,104.52,103.51563038]
[1744166038945,9.5695,104.59,104.55,9.5731]
[1744166039348,0.06610679,104.58,104.55,9.5731]
[1744166040250,0.06610679,104.58,104.54,51.31563038]
[1744166040550,0.06610679,104.58,104.56,51.31563038]
[1744166041553,0.06610679,104.58,104.54,51.31563038]